bitfinex/quotes_ETHUSD_20241106
["timestamp","ask_amount","ask_price","bid_price","bid_amount"]
[1730889738245,0.824,2628.0,2627.7,0.06675959]
[1730889738453,3.80533,2627.9,2627.7,0.06675959]
[1730889738845,0.824,2627.7,2627.2,3.80625]
[1730889739068,0.462946,2627.6,2627.3,3.80616]
[1730889739271,3.80546,2627.8,2627.3,3.80616]
[1730889739479,3.80546,2627.8,2627.2,3.80625]
[1730889739632,3.80546,2627.8,2626.8,0.8313]
[1730889739838,3.80563,2627.7,2627.2,3.80624]
[1730889740060,3.80563,2627.7,2627.0,3.80652]
[1730889740061,0.824,2627.6,2627.1,3.80646]
[1730889740375,1.286946,2627.6,2627.2,3.18128]
[1730889740878,5.092766,2627.6,2627.0,3.80652]
[1730889741069,5.092766,2627.6,2627.1,3.80646]
[1730889741268,5.092766,2627.6,2626.9,3.80665]
[1730889741593,3.80598,2627.5,2626.9,3.80665]
[1730889741736,0.8898746,2627.4,2626.9,3.80665]
[1730889742072,0.8898746,2627.4,2627.0,3.80651]
[1730889742488,0.824,2627.6,2627.1,3.80647]
[1730889742701,0.824,2627.6,2627.3,3.8061]
[1730889743054,0.824,2627.6,2627.4,3.80595]
[1730889743365,0.824,2627.6,2626.7,3.0]
[1730889743366,0.824,2627.6,2627.2,3.80624]
[1730889743557,1.286955,2627.6,2627.4,3.80594]
[1730889743757,0.824,2627.6,2627.4,3.80594]
[1730889744561,0.824,2627.6,2627.3,3.80618]
[1730889744765,0.824,2627.6,2627.3,3.80611]
[1730889745169,0.824,2627.6,2627.3,3.8061]
[1730889745468,0.824,2627.6,2627.2,3.8063]
[1730889745797,1.286954,2627.6,2627.3,3.80609]
[1730889746295,0.824,2627.6,2627.4,3.80595]
[1730889746794,0.824,2627.6,2627.2,3.80619]
[1730889747096,0.824,2627.6,2627.2,7.61244]
[1730889747299,0.824,2627.6,2627.3,3.80611]
[1730889747496,0.824,2627.6,2627.2,3.80619]
[1730889747667,1.286946,2627.6,2627.2,3.80619]
[1730889747871,1.286946,2627.6,2627.3,3.80612]
[1730889748187,1.286946,2627.6,2627.3,3.80607]
[1730889748398,0.824,2627.6,2627.4,3.80597]
[1730889749117,0.7941,2627.8,2627.7,3.80551]
[1730889749408,0.7941,2628.8,2628.6,3.80429]
[1730889749562,0.7941,2628.8,2628.4,3.80448]
[1730889749762,0.7941,2628.8,2628.2,3.80484]
[1730889749985,0.7941,2628.8,2628.3,3.80472]
[1730889750187,0.7941,2628.8,2628.2,3.80484]
[1730889750506,0.7941,2628.8,2628.4,3.80451]
[1730889751362,1.253884,2628.8,2628.4,3.80451]
[1730889751671,0.7941,2628.8,2628.2,7.60965]
[1730889751878,4.59812,2628.8,2628.2,3.80479]
[1730889752280,0.7759,2628.7,2628.3,0.06693427]
[1730889752612,0.7759,2628.5,2627.9,3.80531]
[1730889752809,0.7759,2628.5,2628.4,0.06646539]
[1730889753108,0.7759,2628.5,2627.9,3.80531]
[1730889753428,0.7759,2628.5,2627.4,3.8192]
[1730889753429,3.8046,2628.4,2628.0,0.06663073]
[1730889753623,3.8046,2628.4,2627.8,3.80544]
[1730889753764,3.8046,2628.4,2628.1,0.06660216]
[1730889753765,0.45805,2628.3,2628.1,0.06660216]
[1730889753964,0.8243,2628.2,2627.7,3.80549]
[1730889755180,0.8243,2628.2,2627.7,7.611]
[1730889755393,0.8243,2628.2,2627.7,3.80549]
[1730889756614,4.62926,2628.2,2627.5,3.80582]
[1730889756773,0.508731,2628.1,2627.6,3.80573]
[1730889756974,0.508731,2628.1,2627.7,3.80559]
[1730889757223,0.8243,2628.2,2627.7,3.80559]
[1730889758119,0.8243,2628.2,2627.4,0.8192]
[1730889758120,4.62928,2628.2,2627.4,3.80601]
[1730889758321,4.62928,2628.2,2627.6,7.61136]
[1730889758823,0.8243,2628.2,2627.7,3.80558]
[1730889759026,0.7752,2628.6,2628.1,3.80495]
[1730889759184,0.7752,2628.6,2628.1,7.60989]
[1730889759683,0.7752,2628.6,2628.1,3.80494]
[1730889760271,0.7752,2628.6,2628.2,3.80484]
[1730889760477,0.7752,2628.6,2628.4,3.80452]
[1730889761424,0.7752,2628.6,2628.5,0.06623231]
[1730889761662,1.233122,2628.6,2628.2,3.80478]
[1730889761970,1.233122,2628.6,2628.3,3.80472]
[1730889762261,1.233122,2628.6,2628.3,0.06629728]
[1730889762677,1.233122,2628.6,2628.3,3.87102728]
[1730889763164,1.233122,2628.6,2628.3,0.06629728]
[1730889763945,0.7752,2628.6,2628.3,3.87093728]
[1730889764227,0.011407,2629.1,2628.4,3.80451]
[1730889764464,0.7683,2629.0,2628.6,3.80423]
[1730889764875,0.7683,2629.0,2628.7,0.06616734]
[1730889765766,3.80399,2628.9,2628.3,3.8047]
[1730889765976,0.837609,2628.8,2628.4,3.80458]
[1730889766178,0.837609,2628.8,2628.3,3.8047]
[1730889766670,4.641669,2628.8,2628.3,3.8047]
[1730889766846,3.80416,2628.7,2628.2,3.80487]
[1730889767041,0.837609,2628.8,2628.2,3.80487]
[1730889767371,0.4641599,2628.7,2628.3,3.87080794]
[1730889767538,0.4641599,2628.7,2628.4,3.80453]
[1730889767539,0.8209,2628.6,2628.4,3.80453]
[1730889767739,0.8209,2628.6,2628.5,0.06608296]
[1730889767950,0.8209,2628.6,2628.2,3.80479]
[1730889768167,0.8209,2628.6,2628.5,0.06608296]
[1730889768506,1.283393,2628.6,2628.5,0.06608296]
[1730889768886,1.283393,2628.6,2628.3,3.80473]
[1730889769056,0.8209,2628.6,2628.5,0.06608296]
[1730889769255,0.8209,2628.6,2628.4,0.32197078]
[1730889769480,0.8209,2628.6,2628.5,0.06608296]
[1730889769781,0.8209,2628.6,2628.4,0.25585533]
[1730889770167,0.8209,2628.6,2628.5,0.06608296]
[1730889770370,1.283392,2628.6,2628.5,0.06608296]
[1730889771475,0.8209,2628.6,2628.5,0.06608296]
[1730889772041,0.7995,2628.9,2628.5,0.06608296]
[1730889773362,0.7995,2628.9,2628.5,3.87049296]
[1730889773762,0.7995,2628.9,2628.6,3.80424]
[1730889774276,0.7995,2628.9,2628.7,0.0659001]
[1730889775002,1.2609497,2628.9,2628.5,3.80444]
[1730889775174,1.2609497,2628.9,2628.8,0.06586762]
[1730889775366,1.2609497,2628.9,2628.5,3.80444]
[1730889775561,1.2609497,2628.9,2628.8,0.06586762]
[1730889775760,1.2609497,2628.9,2628.5,3.80444]
[1730889775956,1.2609497,2628.9,2628.8,0.06586762]
[1730889776184,1.2609497,2628.9,2628.5,3.80444]
[1730889776378,0.011407,2629.1,2628.8,0.06586762]
[1730889776668,0.011407,2629.1,2629.0,3.80372]
[1730889777204,0.011407,2629.1,2629.0,3.86952267]
[1730889778406,0.011407,2629.1,2628.7,3.80415]
[1730889778581,0.011407,2629.1,2629.0,0.06360925]
[1730889778765,0.011407,2629.1,2628.8,3.80392]
[1730889778965,0.011407,2629.1,2629.0,0.06360925]
[1730889779192,0.011407,2629.1,2628.9,0.06364172]
[1730889779360,0.7732257,2629.1,2629.0,0.06360925]
[1730889779566,0.011407,2629.1,2629.0,0.06360925]
[1730889779823,0.011407,2629.1,2628.8,3.80397]
[1730889780138,0.011407,2629.1,2628.9,0.06364172]
[1730889780505,0.011407,2629.1,2628.6,0.7725]
[1730889780709,0.011407,2629.1,2628.9,3.80378]
[1730889780921,0.011407,2629.1,2629.0,0.06360925]
[1730889781441,0.011407,2629.1,2629.0,3.86732925]
[1730889781640,0.011407,2629.1,2629.0,3.80372]
[1730889781938,0.011407,2629.1,2629.0,3.86717601]
[1730889783746,0.011407,2629.1,2629.0,0.06345601]
[1730889784101,0.765207,2629.1,2629.0,0.0591321]
[1730889784330,0.011407,2629.1,2629.0,3.8628521]
[1730889784516,0.011407,2629.1,2629.0,3.80372]
[1730889784843,0.011407,2629.1,2629.0,3.86162071]
[1730889785228,0.011407,2629.1,2629.0,0.05790071]
[1730889785602,0.8486117,2629.1,2628.7,7.60814]
[1730889785808,0.8486117,2629.1,2629.0,0.05790071]
[1730889786002,0.8486117,2629.1,2628.7,7.60814]
[1730889786204,0.8486117,2629.1,2629.0,0.05790071]
[1730889786545,0.8486117,2629.1,2629.0,0.05792031]
[1730889786546,4.6521917,2629.1,2629.0,0.05792031]
[1730889786750,0.8486117,2629.1,2628.7,3.80408]
[1730889786948,0.8486117,2629.1,2629.0,0.05792031]
[1730889787248,0.8486117,2629.1,2628.7,3.80408]
[1730889787549,0.46520617,2629.0,2628.7,3.80408]
[1730889787717,0.46520617,2629.0,2628.4,3.80448]
[1730889787921,4.6522117,2629.1,2628.4,3.80448]
[1730889788123,0.7566,2628.8,2628.4,3.80448]
[1730889788324,0.011407,2629.1,2628.7,3.80404]
[1730889788519,3.815007,2629.1,2628.6,3.80423]
[1730889788843,0.011407,2629.1,2628.8,3.80401]
[1730889789048,0.3928977,2629.1,2628.7,3.80412]
[1730889789412,0.011407,2629.1,2628.8,3.80396]
[1730889789842,0.011407,2629.1,2628.7,3.80407]
[1730889790113,0.011407,2629.1,2628.8,3.80391]
[1730889790358,0.011407,2629.1,2629.0,3.80372]
[1730889791741,0.011407,2629.1,2628.5,0.7738]
[1730889791912,0.011407,2629.1,2628.8,3.80393]
[1730889792253,0.011407,2629.1,2628.9,3.80377]
[1730889792560,0.011407,2629.1,2629.0,3.80372]
[1730889793223,0.011407,2629.1,2628.9,3.80387]
[1730889793412,0.011407,2629.1,2628.7,3.80408]
[1730889793813,4.5945,2629.0,2628.5,3.80444]
[1730889794117,0.7907,2629.0,2628.6,3.80428]
[1730889794446,3.815127,2629.1,2628.7,7.60815]
[1730889794447,0.011407,2629.1,2628.7,7.60815]
[1730889794604,0.011407,2629.1,2628.7,3.80406]
[1730889794817,0.011407,2629.1,2628.9,3.80387]
[1730889795026,0.011407,2629.1,2629.0,4.184107]
[1730889795253,0.011407,2629.1,2629.0,7.951707]
[1730889795853,0.011407,2629.1,2629.0,8.02776684]
[1730889796653,0.011407,2629.1,2629.0,7.951707]
[1730889797277,0.011407,2629.1,2629.0,8.00958026]
[1730889800323,0.011407,2629.1,2629.0,7.62919326]
[1730889800518,0.011407,2629.1,2629.0,6.86159326]
[1730889801325,0.011407,2629.1,2629.0,3.86159326]
[1730889803167,0.011407,2629.1,2629.0,0.05787326]
[1730889803532,0.011407,2629.1,2629.0,3.86159326]
[1730889803739,0.011407,2629.1,2629.0,0.05787326]
[1730889804436,0.011407,2629.1,2628.8,3.80399]
[1730889804675,0.011407,2629.1,2629.0,0.05770864]
[1730889804876,0.011407,2629.1,2628.9,0.05774111]
[1730889805068,0.011407,2629.1,2629.0,0.05770864]
[1730889805445,0.779,2629.0,2628.6,3.8042]
[1730889805931,0.779,2629.0,2628.7,3.80412]
[1730889806337,1.2383877,2629.0,2628.7,3.80412]
[1730889806573,1.2383877,2629.0,2628.5,3.80436]
[1730889806736,0.779,2629.0,2628.5,3.80436]
[1730889806933,0.011407,2629.1,2628.4,0.07608361]
[1730889807139,0.011407,2629.1,2629.0,3.80372]
[1730889810164,0.011407,2629.1,2629.0,7.58962]
[1730889810460,7e-06,2629.1,2629.0,12.24382384]
[1730889810777,7e-06,2629.1,2629.0,13.85059022]
[1730889812306,7e-06,2629.1,2629.0,13.90823224]
[1730889815007,7e-06,2629.1,2629.0,9.53852513]
[1730889816016,7e-06,2629.1,2629.0,9.53811955]
[1730889816913,7e-06,2629.1,2629.0,9.2540284]
[1730889818532,7e-06,2629.1,2629.0,9.53811155]
[1730889819417,7e-06,2629.1,2629.0,13.90781866]
[1730889826335,7e-06,2629.1,2629.0,9.53811155]
[1730889829025,7e-06,2629.1,2629.0,13.90781866]
[1730889830709,7e-06,2629.1,2629.0,14.19196011]
[1730889831114,7e-06,2629.1,2629.0,13.90787696]
[1730889834247,7e-06,2629.1,2629.0,13.62373551]
[1730889834546,7e-06,2629.1,2629.0,13.90792957]
[1730889836362,7e-06,2629.1,2629.0,14.45792957]
[1730889837820,7e-06,2629.1,2629.0,14.17373551]
[1730889838257,7e-06,2629.1,2629.0,14.45839029]
[1730889842826,0.1295275,2629.7,2629.6,3.80285]
[1730889843178,0.1295275,2629.7,2629.6,7.08750478]
[1730889843334,0.1295275,2629.7,2629.6,7.14049799]
[1730889845598,0.1295275,2629.7,2629.6,6.85584321]
[1730889845794,0.1295275,2629.7,2629.6,7.14073855]
[1730889846295,0.1295275,2629.7,2629.6,6.85584321]
[1730889846903,0.1295275,2629.7,2629.6,7.14073108]
[1730889848875,0.1295275,2629.7,2629.6,4.14073108]
[1730889848876,0.9237275,2629.7,2629.6,4.14073108]
[1730889849205,0.9237275,2629.7,2629.6,4.21677977]
[1730889849489,0.9237275,2629.7,2629.6,7.14073108]
[1730889849696,0.1295275,2629.7,2629.6,8.23510119]
[1730889850284,0.1295275,2629.7,2629.6,7.14073108]
[1730889850799,0.9306275,2629.7,2629.6,7.14073108]
[1730889851194,0.1295275,2629.7,2629.6,7.14073108]
[1730889853323,0.1295275,2629.7,2629.6,7.14068221]
[1730889855129,0.1295275,2629.7,2629.6,6.85584321]
[1730889855332,0.1295275,2629.7,2629.6,7.1407093]
[1730889857032,0.1295275,2629.7,2629.6,3.85584321]
[1730889857226,0.1295275,2629.7,2629.6,3.93189137]
[1730889857529,0.1295275,2629.7,2629.6,4.2167607]
[1730889858289,0.1295275,2629.7,2629.6,4.14071254]
[1730889863479,0.1295275,2629.7,2629.6,4.14075807]
[1730889865234,0.1295275,2629.7,2629.6,4.93513088]
[1730889866065,0.1295275,2629.7,2629.6,4.65021602]
[1730889866266,0.1295275,2629.7,2629.6,3.85584321]
[1730889868139,0.1295275,2629.7,2629.6,3.93189052]
[1730889868747,0.1295275,2629.7,2629.6,4.13935304]
[1730889868964,0.1295275,2629.7,2629.6,4.2153975]
[1730889869267,0.1295275,2629.7,2629.6,7.2153975]
[1730889869440,0.1295275,2629.7,2629.6,8.31723425]
[1730889869784,0.1295275,2629.7,2629.6,8.24118979]
[1730889871172,0.1295275,2629.7,2629.6,8.24118577]
[1730889872887,0.1295275,2629.7,2629.6,4.13934902]
[1730889872888,0.9451275,2629.7,2629.6,4.13934902]
[1730889873239,0.9451275,2629.7,2629.6,3.85584321]
[1730889875456,0.9451275,2629.7,2629.6,4.1394081]
[1730889875638,0.9451275,2629.7,2629.6,4.13939888]
[1730889876256,0.9451275,2629.7,2629.6,3.85584321]
[1730889877488,0.9451275,2629.7,2629.6,0.05299321]
[1730889877686,1.42576925,2629.7,2629.6,0.05299321]
[1730889878052,1.42576925,2629.7,2629.4,3.80307]
[1730889878383,1.42576925,2629.7,2629.3,3.8032]
[1730889878384,4.41287925,2629.7,2629.6,0.04663684]
[1730889878694,3.80301,2629.5,2629.1,3.80356]
[1730889878861,1.153301,2629.4,2629.1,3.80356]
[1730889879189,1.153301,2629.4,2628.9,3.80378]
[1730889879190,0.773,2629.3,2628.9,3.80378]
[1730889879548,0.7795,2629.2,2628.9,3.80378]
[1730889880088,0.7795,2629.2,2629.0,3.8037]
[1730889883149,0.7795,2629.2,2628.9,7.60757]
[1730889883352,0.7795,2629.2,2628.9,3.80378]
[1730889883652,0.7795,2629.2,2629.1,3.80358]
[1730889883851,0.7795,2629.2,2629.0,3.8037]
[1730889884973,0.7795,2629.2,2629.0,3.80372]
[1730889885382,0.7795,2629.2,2629.1,3.80358]
[1730889886090,0.7795,2629.2,2628.9,3.80385]
[1730889886431,0.7795,2629.2,2629.0,3.80364]
[1730889886696,0.7795,2629.2,2628.4,4.42676984]
[1730889886991,0.7795,2629.2,2628.9,7.6077]
[1730889887157,0.7795,2629.2,2628.9,7.60764]
[1730889887358,0.7795,2629.2,2629.0,0.04402947]
[1730889890171,0.7584,2629.1,2629.0,0.04402947]
[1730889890697,0.7584,2629.1,2629.0,0.04435387]
[1730889890992,0.7584,2629.1,2628.7,7.6081]
[1730889891197,0.7584,2629.1,2629.0,0.04435387]
[1730889891370,1.594922,2629.1,2628.7,7.60808]
[1730889891566,1.594922,2629.1,2629.0,0.04435387]
[1730889891758,1.594922,2629.1,2628.7,3.80404]
[1730889891950,1.594922,2629.1,2629.0,0.04437089]
[1730889892153,0.8102,2629.0,2628.5,3.80434]
[1730889892384,0.8102,2629.0,2628.6,3.80428]
[1730889893894,1.3552302,2629.0,2628.5,3.80434]
[1730889894096,1.3552302,2629.0,2628.6,3.80423]
[1730889894814,1.3552302,2629.0,2628.5,3.80434]
[1730889895035,3.80394,2628.9,2628.4,3.86163273]
[1730889895327,0.8102,2628.8,2628.5,3.80443]
[1730889895626,0.8102,2628.8,2628.6,3.80426]
[1730889895793,0.7715,2629.0,2628.8,3.80399]
[1730889895998,1.229006,2629.0,2628.8,3.80399]
[1730889896220,0.7715,2629.0,2628.8,3.80399]
[1730889896549,0.7715,2629.0,2628.6,3.80423]
[1730889896901,0.7715,2629.0,2628.5,3.80445]
[1730889897436,0.7715,2629.0,2628.6,3.80419]
[1730889897998,0.7715,2629.0,2628.6,3.8043]
[1730889898194,0.7715,2629.0,2628.4,0.05706273]
[1730889898394,0.7715,2629.0,2628.8,3.80398]
[1730889898636,0.7715,2629.0,2628.7,3.80408]
[1730889899039,0.7715,2629.0,2628.7,3.80416]
[1730889899596,0.7715,2629.0,2628.6,7.60842]
[1730889899901,0.7715,2629.0,2628.7,3.80407]
[1730889900112,0.7715,2629.0,2628.8,3.80392]
[1730889900838,0.7715,2629.0,2628.7,3.80408]
[1730889901198,0.7715,2629.0,2628.7,3.80406]
[1730889901405,0.7715,2629.0,2628.8,3.80395]
[1730889902201,0.7715,2629.0,2628.9,0.04458741]
[1730889902529,0.7715,2629.0,2628.9,3.84845741]
[1730889902900,0.7715,2629.0,2628.9,0.04458741]
[1730889903928,0.7715,2629.0,2628.7,3.80415]
[1730889904103,0.7715,2629.0,2628.9,0.04461904]
[1730889904839,0.7715,2629.0,2628.9,3.84848904]
[1730889905633,0.7666,2629.4,2628.9,0.04461904]
[1730889905813,1.223561,2629.4,2629.1,3.80357]
[1730889906202,1.223561,2629.4,2629.2,0.04457823]
[1730889906513,1.223561,2629.4,2629.0,3.80369]
[1730889906711,1.223561,2629.4,2629.3,0.04454576]
[1730889907038,1.223561,2629.4,2629.1,3.80357]
[1730889907239,1.223561,2629.4,2629.3,0.04455207]
[1730889907611,1.223561,2629.4,2629.1,3.80357]
[1730889907934,1.223561,2629.4,2629.2,0.04458453]
[1730889909298,0.7666,2629.4,2629.3,3.80329]
[1730889909502,0.9243275,2629.7,2629.5,3.80297]
[1730889909739,0.9243275,2629.7,2629.6,3.80285]
[1730889909940,0.9243275,2629.7,2629.6,3.84708125]
[1730889911908,0.9243275,2629.7,2629.6,0.04423125]
[1730889913152,0.1295275,2629.7,2629.6,3.84708125]
[1730889913332,0.1295275,2629.7,2629.6,4.61208738]
[1730889913537,0.1295275,2629.7,2629.6,0.80923738]
[1730889913723,0.1295275,2629.7,2629.6,0.04423125]
[1730889914043,0.1295275,2629.7,2629.6,3.84708125]
[1730889914350,0.1295275,2629.7,2629.6,0.04423125]
[1730889915417,0.9251275,2629.7,2629.6,0.04423125]
[1730889915645,5.20648825,2629.7,2629.6,0.04423125]
[1730889915824,3.80306,2629.5,2629.1,3.80351]
[1730889916227,3.80306,2629.5,2628.9,3.80377]
[1730889916444,3.80306,2629.5,2629.0,3.80372]
[1730889916751,4.56656,2629.2,2628.7,3.80409]
[1730889917050,4.640584,2629.1,2628.7,3.80409]
[1730889917349,3.80359,2629.1,2628.8,0.04287869]
[1730889917551,3.80359,2629.1,2628.7,3.80409]
[1730889917709,3.80359,2629.1,2628.9,0.0428547]
[1730889918054,4.56645,2629.2,2629.0,0.04282222]
[1730889918347,3.80393,2628.9,2628.4,3.80448]
[1730889918512,0.380393,2628.8,2628.4,3.80448]
[1730889918709,3.80393,2628.9,2628.4,7.60896]
[1730889918909,3.80393,2628.9,2628.2,3.80474]
[1730889919147,3.80408,2628.8,2628.3,3.8047]
[1730889919448,4.62787,2628.7,2628.2,3.80474]
[1730889919656,3.80431,2628.6,2628.2,3.80474]
[1730889919862,3.80431,2628.6,2628.1,3.80502]
[1730889919863,4.647518,2628.6,2628.1,3.80502]
[1730889920460,4.647518,2628.6,2628.1,7.60996]
[1730889920630,4.647518,2628.6,2628.1,3.80494]
[1730889921342,4.647518,2628.6,2628.1,3.80493]
[1730889922224,4.647518,2628.6,2628.1,7.60983]
[1730889922554,4.647518,2628.6,2628.1,3.8049]
[1730889923065,0.843218,2628.6,2628.3,3.80473]
[1730889923351,0.8237,2628.7,2628.3,3.80473]
[1730889924413,4.62794,2628.7,2628.1,3.8049]
[1730889924960,4.62794,2628.7,2628.2,3.80478]
[1730889924961,0.8237,2628.7,2628.2,3.80478]
[1730889925114,0.8237,2628.7,2628.3,3.80472]
[1730889925652,4.6279,2628.7,2628.2,3.80478]
[1730889925813,5.471094,2628.7,2628.2,3.80478]
[1730889926014,3.80442,2628.6,2627.9,0.8057]
[1730889926265,4.61107,2628.5,2628.0,3.80515]
[1730889926633,3.8046,2628.4,2628.0,3.80515]
[1730889927546,0.8065,2628.5,2627.8,3.80533]
[1730889927857,3.80471,2628.4,2627.9,3.80527]
[1730889928562,3.80468,2628.4,2627.9,3.80527]
[1730889929411,4.265798,2628.4,2627.9,3.80521]
[1730889929617,4.265798,2628.4,2627.9,3.80531]
[1730889929945,3.80477,2628.3,2627.9,3.80531]
[1730889930144,3.80477,2628.3,2627.8,3.80545]
[1730889930354,0.8034,2628.1,2627.5,3.80578]
[1730889930663,7.6105,2628.0,2627.5,3.80578]
[1730889930833,3.80525,2628.0,2627.5,3.80578]
[1730889931362,3.80535,2627.9,2627.5,3.80578]
[1730889931862,0.8034,2628.1,2627.7,3.8056]
[1730889932231,0.8034,2628.1,2627.8,0.0442769]
[1730889932480,4.60856,2628.1,2627.5,0.07610734]
[1730889932769,3.80541,2627.9,2627.3,7.61215]
[1730889932961,7.61083,2627.9,2627.3,3.80607]
[1730889933165,3.80546,2627.8,2627.3,3.80607]
[1730889933473,4.61451,2627.7,2627.2,3.80632]
[1730889934266,4.61451,2627.7,2627.2,3.80625]
[1730889934267,4.61452,2627.7,2627.2,3.80625]
[1730889934427,0.8089,2627.7,2627.3,3.80607]
[1730889934969,3.80474,2628.3,2627.8,3.80536]
[1730889935128,3.80474,2628.3,2627.4,0.806]
[1730889935129,0.8194,2628.4,2628.0,3.80503]
[1730889935334,0.7558,2628.9,2628.1,0.07609377]
[1730889935526,3.8041,2628.8,2628.3,3.80464]
[1730889936539,4.640471,2628.8,2628.0,3.80507]
[1730889936754,3.80437,2628.6,2628.0,3.80517]
[1730889937142,3.80447,2628.5,2628.0,3.80517]
[1730889937341,3.80447,2628.5,2627.8,10.61067]
[1730889937342,3.8046,2628.4,2627.8,10.61067]
[1730889937571,3.8046,2628.4,2627.9,3.8053]
[1730889937982,0.7974,2628.5,2628.1,3.80502]
[1730889938139,0.7974,2628.5,2628.1,3.80489]
[1730889938781,0.7974,2628.5,2628.2,3.80484]
[1730889939278,0.7974,2628.5,2628.1,3.80489]
[1730889939465,4.60185,2628.5,2628.1,3.80489]
[1730889939870,0.7722,2628.3,2627.9,7.61049]
[1730889940071,0.7722,2628.3,2628.0,3.80517]
[1730889940463,0.7722,2628.3,2628.1,3.80502]
[1730889940645,0.7722,2628.5,2628.1,3.80502]
[1730889940944,0.7722,2628.5,2628.1,3.8049]
[1730889941618,0.7722,2628.5,2628.1,3.80488]
[1730889941826,4.57666,2628.5,2628.1,3.80488]
[1730889942918,3.80468,2628.4,2627.9,3.80523]
[1730889943816,0.8203,2628.2,2627.8,3.80545]
[1730889943990,0.8203,2627.9,2627.5,3.8058]
[1730889944191,0.8203,2627.9,2627.7,3.8055]
[1730889944403,0.8203,2628.2,2627.8,3.80546]
[1730889944913,1.30097487,2628.2,2627.8,3.80546]
[1730889945353,0.8203,2628.2,2627.9,3.80531]
[1730889947235,0.8203,2628.2,2628.0,0.04431218]
[1730889947813,0.8203,2628.2,2627.8,3.80545]
[1730889948030,0.8203,2628.2,2628.1,0.04428822]
[1730889948245,4.62527,2628.2,2627.7,3.80559]
[1730889948401,5.468272,2628.2,2628.1,0.04438274]
[1730889948606,3.80503,2628.1,2627.7,3.80549]
[1730889949010,3.80503,2628.1,2627.5,3.8058]
[1730889949011,3.80503,2628.1,2627.6,3.80568]
[1730889949219,1.663302,2628.2,2627.8,3.8054]
[1730889949729,1.663302,2628.2,2627.8,3.80539]
[1730889950008,5.468282,2628.2,2627.7,3.8056]
[1730889950437,5.468282,2628.2,2627.6,3.80566]
[1730889950438,3.80504,2628.1,2627.6,3.80566]
[1730889950748,4.3518742,2628.1,2627.6,3.80566]
[1730889950945,4.3518742,2628.1,2627.7,3.80558]
[1730889951455,4.3518742,2628.1,2627.5,3.80589]
[1730889951744,4.3518742,2628.1,2627.6,3.80571]
[1730889951745,3.80525,2628.0,2627.6,3.80571]
[1730889952104,3.80525,2628.0,2627.5,3.80588]
[1730889952305,0.7923,2627.8,2627.3,3.80617]
[1730889952540,0.7923,2627.5,2627.1,3.80641]
[1730889953147,3.80605,2627.4,2626.8,3.80684]
[1730889953442,4.5982,2627.5,2627.0,3.80659]
[1730889953642,8.40418,2627.5,2627.0,3.80659]
[1730889953800,0.61283952,2627.4,2627.0,3.80659]
[1730889954748,0.61283952,2627.4,2627.1,3.80646]
[1730889955043,0.7923,2627.5,2627.1,3.80646]
[1730889955243,4.59821,2627.5,2627.1,3.80646]
[1730889955747,0.7923,2627.5,2627.1,7.61285]
[1730889956055,0.7923,2627.5,2627.1,3.80639]
[1730889956338,4.59821,2627.5,2626.9,3.80665]
[1730889956580,3.80606,2627.4,2626.9,7.61334]
[1730889956748,3.80606,2627.4,2626.9,3.80665]
[1730889957805,3.80622,2627.3,2626.9,3.80665]
[1730889958002,3.80622,2627.3,2626.8,3.80689]
[1730889958242,3.80622,2627.3,2626.9,3.80676]
[1730889958449,3.80606,2627.4,2626.9,3.80668]
[1730889958828,1.18240384,2627.5,2627.0,3.80659]
[1730889959003,4.98831384,2627.5,2627.0,3.80659]
[1730889959343,3.80606,2627.4,2626.9,3.80666]
[1730889959844,4.98833384,2627.5,2627.0,3.80659]
[1730889960553,1.18240384,2627.5,2627.1,3.80639]
[1730889960757,4.98837384,2627.5,2627.0,3.8065]
[1730889960921,4.59827,2627.5,2627.0,3.8065]
[1730889961654,4.59827,2627.5,2626.9,3.80666]
[1730889961839,0.7923,2627.5,2627.1,3.80645]
[1730889962157,3.80554,2627.8,2627.2,7.62375469]
[1730889962360,3.80554,2627.8,2627.4,3.80603]
[1730889962723,3.80554,2627.8,2627.5,0.04521932]
[1730889963022,0.8063,2627.7,2627.3,3.80612]
[1730889963243,0.8063,2627.7,2627.6,0.04518682]
[1730889963447,0.8063,2627.7,2627.3,3.80612]
[1730889963652,0.8063,2627.7,2627.6,0.04518682]
[1730889963818,0.8063,2627.7,2627.3,3.80612]
[1730889964019,0.8063,2627.7,2627.6,0.04518682]
[1730889964333,0.8063,2627.7,2627.6,0.04508866]
[1730889964533,0.8063,2627.7,2627.4,3.80602]
[1730889964716,0.8063,2627.7,2627.6,0.04518682]
[1730889964916,0.8063,2627.7,2627.4,3.80602]
[1730889965159,0.8063,2627.7,2627.6,0.04518682]
[1730889965319,0.8063,2627.7,2627.3,3.80617]
[1730889965520,0.8063,2627.7,2627.6,0.04518682]
[1730889965824,0.8063,2627.7,2627.3,3.80617]
[1730889966018,0.8063,2627.7,2626.9,3.80674]
[1730889966019,5.066604,2627.7,2627.6,0.04518682]
[1730889966354,0.7997,2627.2,2626.8,3.80684]
[1730889966660,4.60604,2627.2,2626.8,3.80684]
[1730889967016,0.7997,2627.2,2626.6,0.7921]
[1730889967331,0.7997,2627.2,2626.9,3.80666]
[1730889967530,0.7997,2627.2,2626.8,7.61362]
[1730889967847,0.7997,2627.2,2626.8,3.80681]
[1730889968529,0.7997,2627.2,2626.9,3.80676]
[1730889968730,0.7997,2627.2,2626.7,3.80705]
[1730889968933,0.7997,2627.2,2627.0,3.80656]
[1730889970274,0.7997,2627.2,2627.0,3.80654]
[1730889970443,0.7997,2627.2,2627.1,3.80647]
[1730889970842,0.8164,2627.5,2627.1,3.80647]
[1730889971269,4.62239,2627.5,2627.0,3.80654]
[1730889971433,4.62239,2627.5,2627.0,7.61306]
[1730889971771,4.62239,2627.5,2627.0,3.80652]